[Event "Titled Tuesday Blitz May 24 Early 2022"]
[White "Kollars, Dmitrij"]
[Black "Adewumi, Tanitoluwa"]
[WhiteFideId "12909572"]
[BlackFideId "30966396"]
[WhiteElo "2584"]
[BlackElo "2524"]
[Result "1-0"]
[Round "01"]
[TimeControl "180+1"]
[Date "2022.05.24"]
[WhiteClock "0:00:12"]
[BlackClock "0:00:10"]

1. e4 {[%clk 0:02:59]}  c5 {[%clk 0:02:59]} 2. c3 {[%clk 0:02:58]}  Nf6 {[%clk 0:02:59]} 3. e5 {[%clk 0:02:58]}  Nd5 {[%clk 0:03:00]} 4. Bc4 {[%clk 0:02:59]}  Nb6 {[%clk 0:03:00]} 5. Bb3 {[%clk 0:02:59]}  Nc6 {[%clk 0:03:01]} 6. Nf3 {[%clk 0:02:59]}  c4 {[%clk 0:03:01]} 7. Bc2 {[%clk 0:02:59]}  d6 {[%clk 0:03:02]} 8. exd6 {[%clk 0:03:00]}  Qxd6 {[%clk 0:03:02]} 9. b3 {[%clk 0:03:00]}  Be6 {[%clk 0:02:55]} 10. O-O {[%clk 0:03:00]}  O-O-O {[%clk 0:02:54]} 11. Na3 {[%clk 0:02:56]}  Bd5 {[%clk 0:02:53]} 12. Qe2 {[%clk 0:02:46]}  Qe6 {[%clk 0:02:44]} 13. Qxe6+ {[%clk 0:02:41]}  Bxe6 {[%clk 0:02:44]} 14. Ng5 {[%clk 0:02:42]}  Bd5 {[%clk 0:02:44]} 15. Be4 {[%clk 0:01:58]}  Bxe4 {[%clk 0:02:38]} 16. Nxe4 {[%clk 0:01:59]}  cxb3 {[%clk 0:02:31]} 17. axb3 {[%clk 0:02:00]}  e5 {[%clk 0:02:30]} 18. g4 {[%clk 0:01:21]}  h6 {[%clk 0:02:11]} 19. Nc4 {[%clk 0:01:20]}  Nxc4 {[%clk 0:01:57]} 20. bxc4 {[%clk 0:01:21]}  g6 {[%clk 0:01:57]} 21. Nf6 {[%clk 0:01:17]}  Rd3 {[%clk 0:01:44]} 22. Nd5 {[%clk 0:01:08]}  Bc5 {[%clk 0:01:44]} 23. Kg2 {[%clk 0:01:07]}  f5 {[%clk 0:01:44]} 24. h3 {[%clk 0:00:58]}  h5 {[%clk 0:01:40]} 25. g5 {[%clk 0:00:55]}  h4 {[%clk 0:01:40]} 26. f4 {[%clk 0:00:41]}  exf4 {[%clk 0:01:34]} 27. Nxf4 {[%clk 0:00:38]}  Rg3+ {[%clk 0:01:34]} 28. Kh1 {[%clk 0:00:38]}  Bd6 {[%clk 0:01:25]} 29. d4 {[%clk 0:00:35]}  Re8 {[%clk 0:01:09]} 30. Ra2 {[%clk 0:00:35]}  a6 {[%clk 0:01:05]} 31. c5 {[%clk 0:00:29]}  Bxf4 {[%clk 0:01:02]} 32. Bxf4 {[%clk 0:00:30]}  Rxh3+ {[%clk 0:01:02]} 33. Rh2 {[%clk 0:00:30]}  Rxc3 {[%clk 0:00:56]} 34. d5 {[%clk 0:00:30]}  Nd4 {[%clk 0:00:51]} 35. Rxh4 {[%clk 0:00:30]}  Rxc5 {[%clk 0:00:52]} 36. Rh7 {[%clk 0:00:27]}  Re4 {[%clk 0:00:51]} 37. d6 {[%clk 0:00:27]}  Ne6 {[%clk 0:00:41]} 38. Rd1 {[%clk 0:00:13]}  Rxf4 {[%clk 0:00:14]} 39. d7+ {[%clk 0:00:14]}  Kd8 {[%clk 0:00:14]} 40. Rh8+ {[%clk 0:00:14]}  Kc7 {[%clk 0:00:15]} 41. Rc8+ {[%clk 0:00:14]}  Kb6 {[%clk 0:00:15]} 42. Rd6+ {[%clk 0:00:11]}  Rc6 {[%clk 0:00:10]} 43. Rxe6 {[%clk 0:00:08]}  Rd4 {[%clk 0:00:07]} 44. Rexc6+ {[%clk 0:00:08]}  bxc6 {[%clk 0:00:08]} 45. d8=Q+ {[%clk 0:00:09]}  Rxd8 {[%clk 0:00:07]} 46. Rxd8 {[%clk 0:00:09]}  a5 {[%clk 0:00:08]} 47. Rd6 {[%clk 0:00:08]}  a4 {[%clk 0:00:08]} 48. Rxg6 {[%clk 0:00:09]}  a3 {[%clk 0:00:08]} 49. Re6 {[%clk 0:00:09]}  Kc5 {[%clk 0:00:08]} 50. Re1 {[%clk 0:00:09]}  f4 {[%clk 0:00:07]} 51. g6 {[%clk 0:00:10]}  f3 {[%clk 0:00:08]} 52. g7 {[%clk 0:00:11]}  f2 {[%clk 0:00:09]} 53. Rf1 {[%clk 0:00:11]}  Kd4 {[%clk 0:00:09]} 54. g8=Q {[%clk 0:00:12]}  Ke3 {[%clk 0:00:10]} 55. Qa2 {[%clk 0:00:12]} 1-0


[Site "https://www.chess.com"]

[Event "Titled Tuesday Blitz May 24 Early 2022"]
[White "Kosteniuk, Alexandra"]
[Black "Miszler, Levente"]
[WhiteFideId "4128125"]
[BlackFideId "763276"]
[WhiteElo "2469"]
[BlackElo "1966"]
[Result "1-0"]
[Round "01"]
[TimeControl "180+1"]
[Date "2022.05.25"]
[WhiteClock "0:01:46"]
[BlackClock "0:00:40"]

1. e4 {[%clk 0:02:55]}  e6 {[%clk 0:02:59]} 2. d4 {[%clk 0:02:53]}  d5 {[%clk 0:02:58]} 3. Nc3 {[%clk 0:02:53]}  Nf6 {[%clk 0:02:57]} 4. Bg5 {[%clk 0:02:51]}  Be7 {[%clk 0:02:57]} 5. e5 {[%clk 0:02:49]}  Nfd7 {[%clk 0:02:56]} 6. h4 {[%clk 0:02:49]}  h6 {[%clk 0:02:54]} 7. Bxe7 {[%clk 0:02:48]}  Qxe7 {[%clk 0:02:55]} 8. Qg4 {[%clk 0:02:45]}  O-O {[%clk 0:02:48]} 9. Nf3 {[%clk 0:02:44]}  a6 {[%clk 0:02:46]} 10. Rh3 {[%clk 0:02:38]}  f5 {[%clk 0:02:31]} 11. Qg6 {[%clk 0:02:34]}  Qf7 {[%clk 0:02:23]} 12. Qxf7+ {[%clk 0:02:28]}  Kxf7 {[%clk 0:02:23]} 13. O-O-O {[%clk 0:02:28]}  c5 {[%clk 0:02:21]} 14. Ne2 {[%clk 0:02:26]}  Nc6 {[%clk 0:02:21]} 15. c3 {[%clk 0:02:26]}  b5 {[%clk 0:02:17]} 16. h5 {[%clk 0:02:25]}  a5 {[%clk 0:02:12]} 17. Nf4 {[%clk 0:02:25]}  b4 {[%clk 0:02:10]} 18. Nh4 {[%clk 0:02:20]}  Nb6 {[%clk 0:01:44]} 19. Nhg6 {[%clk 0:02:15]}  Rd8 {[%clk 0:01:40]} 20. dxc5 {[%clk 0:02:15]}  Nd7 {[%clk 0:01:32]} 21. c4 {[%clk 0:02:11]}  d4 {[%clk 0:01:27]} 22. Nd3 {[%clk 0:02:08]}  Ba6 {[%clk 0:01:16]} 23. b3 {[%clk 0:02:07]}  Ne7 {[%clk 0:01:09]} 24. Nxe7 {[%clk 0:01:59]}  Kxe7 {[%clk 0:01:08]} 25. g4 {[%clk 0:01:57]}  Rac8 {[%clk 0:01:01]} 26. gxf5 {[%clk 0:01:55]}  exf5 {[%clk 0:01:02]} 27. Rg3 {[%clk 0:01:56]}  Kf7 {[%clk 0:00:54]} 28. e6+ {[%clk 0:01:52]}  Kxe6 {[%clk 0:00:53]} 29. Rxg7 {[%clk 0:01:49]}  Nf6 {[%clk 0:00:42]} 30. Re1+ {[%clk 0:01:48]}  Ne4 {[%clk 0:00:40]} 31. Rg6+ {[%clk 0:01:48]}  Kf7 {[%clk 0:00:40]} 32. Rxa6 {[%clk 0:01:46]} 1-0


[Site "https://www.chess.com"]

[Event "Titled Tuesday Blitz May 24 Early 2022"]
[White "Kruckenhauser, Arthur"]
[Black "Silvestre, Christian"]
[WhiteFideId "1642812"]
[BlackFideId "30956269"]
[WhiteElo "2243"]
[BlackElo "2268"]
[Result "1-0"]
[Round "01"]
[TimeControl "180+1"]
[Date "2022.05.25"]
[WhiteClock "0:02:04"]
[BlackClock "0:01:19"]

1. Nf3 {[%clk 0:02:59]}  d6 {[%clk 0:02:55]} 2. d4 {[%clk 0:02:59]}  Nf6 {[%clk 0:02:55]} 3. c4 {[%clk 0:03:00]}  g6 {[%clk 0:02:55]} 4. Nc3 {[%clk 0:03:00]}  Bg7 {[%clk 0:02:55]} 5. e4 {[%clk 0:03:01]}  O-O {[%clk 0:02:54]} 6. Be2 {[%clk 0:03:02]}  e5 {[%clk 0:02:53]} 7. O-O {[%clk 0:03:02]}  Nc6 {[%clk 0:02:53]} 8. dxe5 {[%clk 0:02:58]}  Nxe5 {[%clk 0:02:47]} 9. Nxe5 {[%clk 0:02:58]}  dxe5 {[%clk 0:02:48]} 10. Qa4 {[%clk 0:02:59]}  c6 {[%clk 0:02:47]} 11. Be3 {[%clk 0:02:58]}  Qe7 {[%clk 0:02:44]} 12. Rfd1 {[%clk 0:02:54]}  Nd7 {[%clk 0:02:30]} 13. Rd2 {[%clk 0:02:47]}  Re8 {[%clk 0:02:27]} 14. Rad1 {[%clk 0:02:47]}  Nc5 {[%clk 0:02:27]} 15. Qa3 {[%clk 0:02:45]}  Ne6 {[%clk 0:02:26]} 16. Qxe7 {[%clk 0:02:32]}  Rxe7 {[%clk 0:02:25]} 17. Rd8+ {[%clk 0:02:33]}  Bf8 {[%clk 0:02:08]} 18. Bh6 {[%clk 0:02:32]}  f6 {[%clk 0:02:05]} 19. Bg4 {[%clk 0:02:20]}  f5 {[%clk 0:01:40]} 20. exf5 {[%clk 0:02:15]}  Nxd8 {[%clk 0:01:40]} 21. Rxd8 {[%clk 0:02:14]}  Rf7 {[%clk 0:01:27]} 22. fxg6 {[%clk 0:02:11]}  Bxg4 {[%clk 0:01:24]} 23. gxf7+ {[%clk 0:02:03]}  Kxf7 {[%clk 0:01:23]} 24. Rxa8 {[%clk 0:02:04]}  Bxh6 {[%clk 0:01:22]} 25. Rxa7 {[%clk 0:02:04]}  Bc8 {[%clk 0:01:20]} 26. Ra8 {[%clk 0:02:04]}  Be6 {[%clk 0:01:19]} 27. Ne4 {[%clk 0:02:04]} 1-0


[Site "https://www.chess.com"]

[Event "Titled Tuesday Blitz May 24 Early 2022"]
[White "Kvaloy, Aksel Bu"]
[Black "Karolczuk, Iwo"]
[WhiteFideId "1528815"]
[BlackFideId "21816972"]
[WhiteElo "2053"]
[BlackElo "2258"]
[Result "0-1"]
[Round "01"]
[TimeControl "180+1"]
[Date "2022.05.25"]
[WhiteClock "0:00:03"]
[BlackClock "0:00:03"]

1. e4 {[%clk 0:02:56]}  c5 {[%clk 0:02:59]} 2. Nf3 {[%clk 0:02:56]}  d6 {[%clk 0:02:59]} 3. d4 {[%clk 0:02:56]}  cxd4 {[%clk 0:03:00]} 4. Nxd4 {[%clk 0:02:56]}  Nf6 {[%clk 0:03:00]} 5. Nc3 {[%clk 0:02:56]}  a6 {[%clk 0:03:00]} 6. h4 {[%clk 0:02:56]}  e5 {[%clk 0:02:59]} 7. Nb3 {[%clk 0:02:56]}  Be7 {[%clk 0:02:59]} 8. Be2 {[%clk 0:02:53]}  Be6 {[%clk 0:02:51]} 9. f4 {[%clk 0:02:52]}  b5 {[%clk 0:02:45]} 10. g4 {[%clk 0:02:48]}  exf4 {[%clk 0:02:31]} 11. g5 {[%clk 0:02:36]}  Nfd7 {[%clk 0:02:30]} 12. Bxf4 {[%clk 0:02:36]}  Nc6 {[%clk 0:02:08]} 13. Qd2 {[%clk 0:02:34]}  Nde5 {[%clk 0:02:04]} 14. O-O-O {[%clk 0:02:34]}  Rc8 {[%clk 0:01:46]} 15. Nd5 {[%clk 0:02:32]}  Nc4 {[%clk 0:01:27]} 16. Bxc4 {[%clk 0:02:22]}  bxc4 {[%clk 0:01:28]} 17. Nd4 {[%clk 0:02:22]}  Nxd4 {[%clk 0:01:20]} 18. Qxd4 {[%clk 0:02:23]}  Bxd5 {[%clk 0:01:17]} 19. exd5 {[%clk 0:02:22]}  O-O {[%clk 0:01:14]} 20. c3 {[%clk 0:02:08]}  Re8 {[%clk 0:01:07]} 21. Rhg1 {[%clk 0:02:06]}  Bf8 {[%clk 0:01:07]} 22. h5 {[%clk 0:02:05]}  Qd7 {[%clk 0:01:04]} 23. h6 {[%clk 0:01:42]}  Qf5 {[%clk 0:01:02]} 24. Rdf1 {[%clk 0:01:38]}  Qg6 {[%clk 0:00:44]} 25. Be3 {[%clk 0:01:00]}  Re4 {[%clk 0:00:40]} 26. Qd2 {[%clk 0:01:00]}  Rce8 {[%clk 0:00:40]} 27. Bd4 {[%clk 0:00:57]}  Re2 {[%clk 0:00:40]} 28. Qd1 {[%clk 0:00:58]}  Qe4 {[%clk 0:00:30]} 29. Rf2 {[%clk 0:00:44]}  Rxf2 {[%clk 0:00:26]} 30. Bxf2 {[%clk 0:00:45]}  Re5 {[%clk 0:00:25]} 31. Bd4 {[%clk 0:00:42]}  Rxd5 {[%clk 0:00:24]} 32. Qd2 {[%clk 0:00:36]}  Qg6 {[%clk 0:00:14]} 33. Re1 {[%clk 0:00:35]}  Rxg5 {[%clk 0:00:10]} 34. hxg7 {[%clk 0:00:29]}  Bxg7 {[%clk 0:00:10]} 35. Re8+ {[%clk 0:00:27]}  Bf8 {[%clk 0:00:10]} 36. Bf2 {[%clk 0:00:06]}  h5 {[%clk 0:00:10]} 37. Qf4 {[%clk 0:00:05]}  Qf5 {[%clk 0:00:07]} 38. Qd4 {[%clk 0:00:04]}  Rg6 {[%clk 0:00:05]} 39. Be3 {[%clk 0:00:04]}  h4 {[%clk 0:00:04]} 40. Qxh4 {[%clk 0:00:05]}  Rg2 {[%clk 0:00:04]} 41. Bd2 {[%clk 0:00:02]}  Qf1+ {[%clk 0:00:04]} 42. Re1 {[%clk 0:00:03]}  Qd3 {[%clk 0:00:03]} 43. Qh1 {[%clk 0:00:03]}  Qxd2+ {[%clk 0:00:03]} 0-1


[Site "https://www.chess.com"]

[Event "Titled Tuesday Blitz May 24 Early 2022"]
[White "Livaic, Leon"]
[Black "Vidonyak, Roman"]
[WhiteFideId "14531534"]
[BlackFideId "14100622"]
[WhiteElo "2540"]
[BlackElo "2362"]
[Result "1-0"]
[Round "01"]
[TimeControl "180+1"]
[Date "2022.05.25"]
[WhiteClock "0:00:24"]
[BlackClock "0:00:10"]

1. d4 {[%clk 0:03:00]}  Nf6 {[%clk 0:02:58]} 2. Nc3 {[%clk 0:03:00]}  d5 {[%clk 0:02:58]} 3. Bf4 {[%clk 0:02:59]}  a6 {[%clk 0:02:57]} 4. e3 {[%clk 0:02:59]}  c5 {[%clk 0:02:57]} 5. dxc5 {[%clk 0:02:57]}  Qa5 {[%clk 0:02:57]} 6. Nf3 {[%clk 0:02:42]}  Qxc5 {[%clk 0:02:50]} 7. Bd3 {[%clk 0:02:41]}  Bg4 {[%clk 0:02:47]} 8. h3 {[%clk 0:02:38]}  Bxf3 {[%clk 0:02:48]} 9. Qxf3 {[%clk 0:02:38]}  e6 {[%clk 0:02:48]} 10. O-O {[%clk 0:02:24]}  Be7 {[%clk 0:02:45]} 11. e4 {[%clk 0:02:23]}  O-O {[%clk 0:02:30]} 12. exd5 {[%clk 0:02:21]}  exd5 {[%clk 0:02:29]} 13. Rfe1 {[%clk 0:02:20]}  Nc6 {[%clk 0:02:27]} 14. Bg5 {[%clk 0:02:05]}  Nd4 {[%clk 0:02:09]} 15. Qe3 {[%clk 0:02:00]}  Ne6 {[%clk 0:01:53]} 16. Qxc5 {[%clk 0:02:00]}  Bxc5 {[%clk 0:01:53]} 17. Bxf6 {[%clk 0:02:00]}  gxf6 {[%clk 0:01:54]} 18. Nxd5 {[%clk 0:02:00]}  Kg7 {[%clk 0:01:52]} 19. b4 {[%clk 0:01:41]}  Bd4 {[%clk 0:01:43]} 20. c3 {[%clk 0:01:40]}  Be5 {[%clk 0:01:43]} 21. Rad1 {[%clk 0:01:32]}  Rfd8 {[%clk 0:01:42]} 22. c4 {[%clk 0:01:32]}  Rac8 {[%clk 0:01:36]} 23. Ne7 {[%clk 0:01:09]}  Rc7 {[%clk 0:01:32]} 24. Nf5+ {[%clk 0:01:09]}  Kg8 {[%clk 0:01:29]} 25. Bf1 {[%clk 0:01:08]}  Rcd7 {[%clk 0:01:24]} 26. Rd5 {[%clk 0:01:04]}  Nf4 {[%clk 0:01:15]} 27. Rxd7 {[%clk 0:01:01]}  Rxd7 {[%clk 0:01:16]} 28. g3 {[%clk 0:01:01]}  Ne6 {[%clk 0:01:15]} 29. c5 {[%clk 0:00:57]}  Bc3 {[%clk 0:01:14]} 30. Re4 {[%clk 0:00:56]}  Rd1 {[%clk 0:01:07]} 31. Kg2 {[%clk 0:00:55]}  Rb1 {[%clk 0:00:57]} 32. a3 {[%clk 0:00:55]}  Rb3 {[%clk 0:00:57]} 33. Bc4 {[%clk 0:00:52]}  Rxa3 {[%clk 0:00:57]} 34. Bxe6 {[%clk 0:00:50]}  fxe6 {[%clk 0:00:58]} 35. Rxe6 {[%clk 0:00:51]}  Bxb4 {[%clk 0:00:57]} 36. Re8+ {[%clk 0:00:43]}  Kf7 {[%clk 0:00:56]} 37. Re7+ {[%clk 0:00:43]}  Kg8 {[%clk 0:00:49]} 38. Rg7+ {[%clk 0:00:42]}  Kf8 {[%clk 0:00:49]} 39. Rxh7 {[%clk 0:00:38]}  Bxc5 {[%clk 0:00:48]} 40. Rxb7 {[%clk 0:00:34]}  Ra2 {[%clk 0:00:49]} 41. g4 {[%clk 0:00:33]}  Rxf2+ {[%clk 0:00:47]} 42. Kg3 {[%clk 0:00:33]}  Ra2 {[%clk 0:00:44]} 43. h4 {[%clk 0:00:33]}  Ra3+ {[%clk 0:00:22]} 44. Kg2 {[%clk 0:00:32]}  Ra2+ {[%clk 0:00:22]} 45. Kf3 {[%clk 0:00:31]}  a5 {[%clk 0:00:22]} 46. h5 {[%clk 0:00:31]}  a4 {[%clk 0:00:22]} 47. h6 {[%clk 0:00:29]}  Kg8 {[%clk 0:00:12]} 48. h7+ {[%clk 0:00:24]}  Kh8 {[%clk 0:00:12]} 49. Nh4 {[%clk 0:00:25]}  Rf2+ {[%clk 0:00:10]} 50. Kg3 {[%clk 0:00:24]} 1-0


[Site "https://www.chess.com"]

[Event "Titled Tuesday Blitz May 24 Early 2022"]
[White "Lobachev, Yury"]
[Black "Ezat, Mohamed"]
[WhiteFideId "24138177"]
[BlackFideId "10600906"]
[WhiteElo "2309"]
[BlackElo "2386"]
[Result "0-1"]
[Round "01"]
[TimeControl "180+1"]
[Date "2022.05.25"]
[WhiteClock "0:00:11"]
[BlackClock "0:00:15"]

1. c4 {[%clk 0:03:00]}  Nf6 {[%clk 0:02:48]} 2. Nc3 {[%clk 0:03:00]}  g6 {[%clk 0:02:46]} 3. g3 {[%clk 0:03:00]}  Bg7 {[%clk 0:02:28]} 4. Bg2 {[%clk 0:03:00]}  O-O {[%clk 0:02:26]} 5. Nf3 {[%clk 0:03:00]}  c5 {[%clk 0:02:27]} 6. O-O {[%clk 0:03:00]}  d5 {[%clk 0:02:27]} 7. cxd5 {[%clk 0:03:00]}  Nxd5 {[%clk 0:02:28]} 8. Nxd5 {[%clk 0:02:55]}  Qxd5 {[%clk 0:01:46]} 9. d3 {[%clk 0:02:55]}  Nc6 {[%clk 0:01:45]} 10. a3 {[%clk 0:02:52]}  b6 {[%clk 0:01:44]} 11. Qc2 {[%clk 0:02:44]}  Bb7 {[%clk 0:01:41]} 12. Be3 {[%clk 0:02:40]}  Rac8 {[%clk 0:01:39]} 13. Rac1 {[%clk 0:02:34]}  e5 {[%clk 0:01:35]} 14. Ng5 {[%clk 0:02:11]}  Qxg2+ {[%clk 0:01:30]} 15. Kxg2 {[%clk 0:02:06]}  Nd4+ {[%clk 0:01:30]} 16. Kg1 {[%clk 0:02:02]}  Nxc2 {[%clk 0:01:30]} 17. Rxc2 {[%clk 0:02:03]}  h6 {[%clk 0:01:27]} 18. Ne4 {[%clk 0:01:56]}  Rfd8 {[%clk 0:01:23]} 19. f3 {[%clk 0:01:43]}  f5 {[%clk 0:01:22]} 20. Nd2 {[%clk 0:01:24]}  g5 {[%clk 0:01:17]} 21. Bf2 {[%clk 0:01:19]}  h5 {[%clk 0:01:11]} 22. Rfc1 {[%clk 0:01:18]}  Kf7 {[%clk 0:01:09]} 23. b4 {[%clk 0:00:59]}  cxb4 {[%clk 0:01:05]} 24. axb4 {[%clk 0:01:00]}  Rxc2 {[%clk 0:01:00]} 25. Rxc2 {[%clk 0:01:01]}  Rd7 {[%clk 0:01:00]} 26. b5 {[%clk 0:00:57]}  Bf8 {[%clk 0:00:55]} 27. Nc4 {[%clk 0:00:54]}  Ke6 {[%clk 0:00:53]} 28. Nd2 {[%clk 0:00:43]}  Bd6 {[%clk 0:00:49]} 29. Kf1 {[%clk 0:00:38]}  Rc7 {[%clk 0:00:48]} 30. Rxc7 {[%clk 0:00:34]}  Bxc7 {[%clk 0:00:48]} 31. Nc4 {[%clk 0:00:33]}  Bc8 {[%clk 0:00:45]} 32. Be3 {[%clk 0:00:20]}  f4 {[%clk 0:00:43]} 33. gxf4 {[%clk 0:00:20]}  gxf4 {[%clk 0:00:43]} 34. Bc1 {[%clk 0:00:17]}  Bd7 {[%clk 0:00:43]} 35. Na3 {[%clk 0:00:17]}  Kd5 {[%clk 0:00:41]} 36. Ke1 {[%clk 0:00:16]}  Kc5 {[%clk 0:00:40]} 37. Kd2 {[%clk 0:00:13]}  Bxb5 {[%clk 0:00:39]} 38. Bb2 {[%clk 0:00:13]}  a6 {[%clk 0:00:24]} 39. Nc2 {[%clk 0:00:13]}  Kd5 {[%clk 0:00:21]} 40. Nb4+ {[%clk 0:00:13]}  Ke6 {[%clk 0:00:21]} 41. Nc2 {[%clk 0:00:12]}  a5 {[%clk 0:00:20]} 42. d4 {[%clk 0:00:12]}  Bc4 {[%clk 0:00:19]} 43. dxe5 {[%clk 0:00:12]}  Bxe5 {[%clk 0:00:19]} 44. Ba3 {[%clk 0:00:12]}  b5 {[%clk 0:00:18]} 45. Bc1 {[%clk 0:00:11]}  b4 {[%clk 0:00:18]} 46. Ne1 {[%clk 0:00:11]}  Bc3+ {[%clk 0:00:17]} 47. Kd1 {[%clk 0:00:11]}  Bb3+ {[%clk 0:00:18]} 48. Nc2 {[%clk 0:00:11]}  a4 {[%clk 0:00:18]} 49. Bd2 {[%clk 0:00:11]}  Bxc2+ {[%clk 0:00:13]} 50. Kxc2 {[%clk 0:00:11]}  Bxd2 {[%clk 0:00:14]} 51. Kxd2 {[%clk 0:00:12]}  a3 {[%clk 0:00:14]} 52. Kc2 {[%clk 0:00:12]}  Kd5 {[%clk 0:00:15]} 53. Kb3 {[%clk 0:00:12]}  Kd4 {[%clk 0:00:16]} 54. h4 {[%clk 0:00:11]}  Ke3 {[%clk 0:00:15]} 0-1


[Site "https://www.chess.com"]

[Event "Titled Tuesday Blitz May 24 Early 2022"]
[White "Lodici, Lorenzo"]
[Black "Mortazavi, Ali"]
[WhiteFideId "884189"]
[BlackFideId "401323"]
[WhiteElo "2265"]
[BlackElo "2339"]
[Result "1-0"]
[Round "01"]
[TimeControl "180+1"]
[Date "2022.05.24"]
[WhiteClock "0:00:31"]
[BlackClock "0:00:01"]

1. c4 {[%clk 0:02:55]}  Nf6 {[%clk 0:02:59]} 2. d4 {[%clk 0:02:54]}  g6 {[%clk 0:03:00]} 3. g3 {[%clk 0:02:43]}  Bg7 {[%clk 0:02:59]} 4. Bg2 {[%clk 0:02:43]}  O-O {[%clk 0:03:00]} 5. Nc3 {[%clk 0:02:41]}  d6 {[%clk 0:03:01]} 6. Nf3 {[%clk 0:02:40]}  Nbd7 {[%clk 0:03:02]} 7. O-O {[%clk 0:02:40]}  e5 {[%clk 0:03:02]} 8. e4 {[%clk 0:02:40]}  c6 {[%clk 0:03:03]} 9. h3 {[%clk 0:02:40]}  Qa5 {[%clk 0:03:03]} 10. Bd2 {[%clk 0:02:39]}  exd4 {[%clk 0:02:58]} 11. Nxd4 {[%clk 0:02:38]}  Qc5 {[%clk 0:02:35]} 12. Bf4 {[%clk 0:02:32]}  Ne5 {[%clk 0:02:22]} 13. b3 {[%clk 0:02:25]}  b5 {[%clk 0:02:06]} 14. Rc1 {[%clk 0:01:59]}  bxc4 {[%clk 0:02:04]} 15. bxc4 {[%clk 0:01:57]}  Bd7 {[%clk 0:01:37]} 16. Nb3 {[%clk 0:01:32]}  Qxc4 {[%clk 0:01:30]} 17. Qxd6 {[%clk 0:01:26]}  Nd3 {[%clk 0:01:27]} 18. Nd5 {[%clk 0:01:25]}  Nxc1 {[%clk 0:01:26]} 19. Rxc1 {[%clk 0:01:17]}  Qxc1+ {[%clk 0:01:05]} 20. Bxc1 {[%clk 0:01:11]}  cxd5 {[%clk 0:01:05]} 21. exd5 {[%clk 0:01:11]}  Bb5 {[%clk 0:00:55]} 22. Nd4 {[%clk 0:01:01]}  Bc4 {[%clk 0:00:54]} 23. Nc6 {[%clk 0:01:01]}  Rfe8 {[%clk 0:00:50]} 24. Ne7+ {[%clk 0:00:53]}  Kh8 {[%clk 0:00:49]} 25. Bb2 {[%clk 0:00:51]}  Nh5 {[%clk 0:00:41]} 26. Bxg7+ {[%clk 0:00:50]}  Nxg7 {[%clk 0:00:42]} 27. a4 {[%clk 0:00:48]}  Rad8 {[%clk 0:00:33]} 28. Qc7 {[%clk 0:00:46]}  Bd3 {[%clk 0:00:25]} 29. d6 {[%clk 0:00:44]}  Nf5 {[%clk 0:00:24]} 30. Qc3+ {[%clk 0:00:39]}  Ng7 {[%clk 0:00:16]} 31. Qf6 {[%clk 0:00:34]}  Rd7 {[%clk 0:00:14]} 32. Bc6 {[%clk 0:00:33]}  Rb8 {[%clk 0:00:11]} 33. Bxd7 {[%clk 0:00:32]}  Rb1+ {[%clk 0:00:11]} 34. Kg2 {[%clk 0:00:32]}  Bf1+ {[%clk 0:00:10]} 35. Kf3 {[%clk 0:00:32]}  Rb3+ {[%clk 0:00:09]} 36. Ke4 {[%clk 0:00:32]}  Bg2+ {[%clk 0:00:03]} 37. Kd4 {[%clk 0:00:32]}  Rb4+ {[%clk 0:00:01]} 38. Kc5 {[%clk 0:00:32]}  Rxa4 {[%clk 0:00:01]} 39. Bxa4 {[%clk 0:00:31]} 1-0


[Site "https://www.chess.com"]

[Event "Titled Tuesday Blitz May 24 Early 2022"]
[White "Lutz, Igor Oscar"]
[Black "Turutin, Alexander"]
[WhiteFideId "2110806"]
[BlackFideId "4180623"]
[WhiteElo "1717"]
[BlackElo "2402"]
[Result "0-1"]
[Round "01"]
[TimeControl "180+1"]
[Date "2022.05.25"]
[WhiteClock "0:00:13"]
[BlackClock "0:01:07"]

1. d4 {[%clk 0:01:46]}  Nf6 {[%clk 0:02:59]} 2. c4 {[%clk 0:01:46]}  g6 {[%clk 0:02:59]} 3. Nc3 {[%clk 0:01:46]}  Bg7 {[%clk 0:02:59]} 4. e4 {[%clk 0:01:46]}  O-O {[%clk 0:02:59]} 5. Nf3 {[%clk 0:01:46]}  d6 {[%clk 0:02:58]} 6. Be2 {[%clk 0:01:46]}  e5 {[%clk 0:02:58]} 7. Be3 {[%clk 0:01:46]}  Na6 {[%clk 0:02:54]} 8. Qc2 {[%clk 0:01:35]}  Ng4 {[%clk 0:02:52]} 9. Bg5 {[%clk 0:01:35]}  f6 {[%clk 0:02:52]} 10. Bh4 {[%clk 0:01:34]}  Qe8 {[%clk 0:02:45]} 11. h3 {[%clk 0:01:32]}  Nh6 {[%clk 0:02:45]} 12. a3 {[%clk 0:01:31]}  exd4 {[%clk 0:02:39]} 13. Nxd4 {[%clk 0:01:30]}  f5 {[%clk 0:02:40]} 14. Nf3 {[%clk 0:01:10]}  fxe4 {[%clk 0:02:39]} 15. Nxe4 {[%clk 0:01:04]}  Bf5 {[%clk 0:02:17]} 16. Nfd2 {[%clk 0:00:58]}  Nc5 {[%clk 0:02:16]} 17. f3 {[%clk 0:00:53]}  Qe5 {[%clk 0:02:01]} 18. O-O {[%clk 0:00:43]}  Qxb2 {[%clk 0:01:56]} 19. Qxb2 {[%clk 0:00:43]}  Bxb2 {[%clk 0:01:56]} 20. Rab1 {[%clk 0:00:41]}  Bxa3 {[%clk 0:01:44]} 21. g4 {[%clk 0:00:40]}  Bxe4 {[%clk 0:01:34]} 22. Nxe4 {[%clk 0:00:40]}  Nxe4 {[%clk 0:01:34]} 23. fxe4 {[%clk 0:00:41]}  Bc5+ {[%clk 0:01:34]} 24. Kg2 {[%clk 0:00:39]}  b6 {[%clk 0:01:30]} 25. Bf3 {[%clk 0:00:32]}  Rae8 {[%clk 0:01:16]} 26. Ra1 {[%clk 0:00:30]}  a5 {[%clk 0:01:15]} 27. Be1 {[%clk 0:00:20]}  Nf7 {[%clk 0:01:12]} 28. Bc3 {[%clk 0:00:20]}  Ne5 {[%clk 0:01:13]} 29. Be2 {[%clk 0:00:18]}  Rxf1 {[%clk 0:01:13]} 30. Rxf1 {[%clk 0:00:19]}  Rf8 {[%clk 0:01:13]} 31. Rxf8+ {[%clk 0:00:16]}  Kxf8 {[%clk 0:01:14]} 32. Kg3 {[%clk 0:00:17]}  Kf7 {[%clk 0:01:12]} 33. Kf4 {[%clk 0:00:15]}  Kf6 {[%clk 0:01:12]} 34. g5+ {[%clk 0:00:13]}  Ke6 {[%clk 0:01:11]} 35. Bxe5 {[%clk 0:00:11]}  dxe5+ {[%clk 0:01:12]} 36. Kg4 {[%clk 0:00:11]}  Be3 {[%clk 0:01:09]} 37. Bd3 {[%clk 0:00:11]}  c6 {[%clk 0:01:08]} 38. h4 {[%clk 0:00:11]}  Bf2 {[%clk 0:01:07]} 39. h5 {[%clk 0:00:11]}  gxh5+ {[%clk 0:01:06]} 40. Kxh5 {[%clk 0:00:12]}  Be3 {[%clk 0:01:06]} 41. Kh6 {[%clk 0:00:12]}  Kd6 {[%clk 0:01:05]} 42. Kxh7 {[%clk 0:00:11]}  Bxg5 {[%clk 0:01:05]} 43. Kg6 {[%clk 0:00:12]}  Bf4 {[%clk 0:01:05]} 44. Kf5 {[%clk 0:00:13]}  Kc5 {[%clk 0:01:05]} 45. Ke6 {[%clk 0:00:13]}  b5 {[%clk 0:01:06]} 46. cxb5 {[%clk 0:00:12]}  cxb5 {[%clk 0:01:07]} 47. Kd7 {[%clk 0:00:12]}  a4 {[%clk 0:01:07]} 48. Kc7 {[%clk 0:00:12]}  a3 {[%clk 0:01:07]} 49. Bb1 {[%clk 0:00:13]}  b4 {[%clk 0:01:08]} 50. Kb7 {[%clk 0:00:13]}  b3 {[%clk 0:01:07]} 0-1


[Site "https://www.chess.com"]